bitfinex-derivatives/quotes_ETHF0:USTF0_20260222
["timestamp","ask_amount","ask_price","bid_price","bid_amount"]
[1771721058251,4.23811419,1970.5,1969.3,0.57890529]
[1771721058553,0.26143852,1970.3,1969.3,0.57890529]
[1771721058753,0.46923019,1970.2,1969.3,0.57890529]
[1771721058954,0.25932334,1970.2,1969.3,0.57890529]
[1771721063861,0.25688275,1970.4,1969.3,0.57890529]
[1771721064058,6.58614988,1970.3,1969.3,0.57890529]
[1771721064258,0.25688275,1970.4,1969.3,0.57890529]
[1771721064457,6.84309318,1970.3,1969.3,0.57890529]
[1771721064660,0.25688275,1970.3,1969.3,0.57890529]
[1771721064856,4.23811419,1970.6,1969.3,0.57890529]
[1771721065061,0.25446868,1970.4,1969.4,0.55361298]
[1771721066662,0.25174082,1970.6,1969.4,0.55361298]
[1771721066863,6.58485817,1970.5,1969.4,0.55361298]
[1771721067066,0.46914773,1970.4,1969.4,0.55361298]
[1771721067361,0.25171619,1970.5,1969.4,0.55361298]
[1771721080872,0.25833058,1970.3,1969.4,0.55361298]
[1771721082176,0.25829019,1970.5,1969.4,0.55361298]
[1771721082468,6.33163212,1970.8,1969.4,0.55361298]
[1771721082469,6.86114163,1970.4,1969.4,0.55361298]
[1771721082669,0.25829019,1970.4,1969.4,0.55361298]
[1771721083074,0.25833892,1970.2,1969.4,0.55361298]
[1771721089385,0.24675847,1970.0,1969.4,0.55361298]
[1771721089581,0.24675847,1970.0,1969.1,0.58740954]
[1771721090384,0.24674071,1969.8,1969.0,0.00537718]
[1771721090682,0.24674071,1969.6,1969.0,0.00537718]
[1771721098895,0.24674071,1969.6,1968.7,0.58740954]
[1771721099790,0.24674071,1969.6,1968.7,0.59350587]
[1771721101896,0.23711975,1970.3,1968.9,0.58740954]
[1771721102899,0.24359338,1970.3,1968.9,0.58740954]
[1771721105206,0.24462206,1970.1,1968.9,0.58740954]
[1771721119511,0.25642131,1969.9,1968.9,0.58740954]
[1771721128512,0.25464385,1970.2,1968.9,0.58740954]
[1771721128714,0.25463369,1970.0,1968.9,0.58740954]
[1771721129116,0.46944231,1969.9,1968.9,0.58740954]
[1771721129414,0.25463369,1970.0,1968.9,0.58740954]
[1771721129616,0.46944809,1969.9,1968.9,0.58740954]
[1771721129817,0.25463369,1970.0,1968.9,0.58740954]
[1771721130020,0.46946949,1969.9,1968.9,0.58740954]
[1771721130220,0.25463369,1970.0,1968.9,0.58740954]
[1771721130520,0.46948604,1969.9,1968.9,0.58740954]
[1771721130716,0.25463369,1970.0,1968.9,0.58740954]
[1771721130918,0.72742745,1969.9,1968.9,0.58740954]
[1771721131214,0.25794124,1969.9,1968.9,0.58740954]
[1771721131718,0.25794124,1969.9,1969.0,0.56332764]
[1771721134322,0.25797923,1970.1,1969.0,0.56332764]
[1771721134524,6.83338787,1970.0,1969.0,0.56332764]
[1771721134719,0.46994178,1969.9,1969.0,0.56332764]
[1771721135019,0.25797923,1970.0,1969.0,0.56332764]
[1771721135218,0.4699418,1969.9,1969.0,0.56332764]
[1771721135420,0.25797923,1970.0,1969.0,0.56332764]
[1771721135620,0.46992856,1969.9,1969.0,0.56332764]
[1771721135821,0.25797923,1970.0,1969.0,0.56332764]
[1771721136021,0.46992547,1969.9,1969.0,0.56332764]
[1771721136324,0.25797923,1970.0,1969.0,0.56332764]
[1771721136721,0.46991514,1969.9,1969.0,0.56332764]
[1771721137019,0.25797923,1970.0,1969.0,0.56332764]
[1771721137222,0.46991517,1969.9,1969.0,0.56332764]
[1771721137423,0.25797923,1970.0,1969.0,0.56332764]
[1771721137622,0.46990683,1969.9,1969.0,0.56332764]
[1771721137821,0.25797923,1970.0,1969.0,0.56332764]
[1771721138123,0.46990668,1969.9,1969.0,0.56332764]
[1771721138324,0.25797923,1970.0,1969.0,0.56332764]
[1771721138523,0.46990027,1969.9,1969.0,0.56332764]
[1771721138725,0.25797923,1970.0,1969.0,0.56332764]
[1771721138920,0.46995746,1969.9,1969.0,0.56332764]
[1771721139123,0.25797923,1970.0,1969.0,0.56332764]
[1771721139322,0.46995287,1969.9,1969.0,0.56332764]
[1771721139520,0.25797923,1970.0,1969.0,0.56332764]
[1771721139816,0.46995282,1969.9,1969.0,0.56332764]
[1771721140020,0.25797923,1970.0,1969.0,0.56332764]
[1771721140220,0.46995287,1969.9,1969.0,0.56332764]
[1771721140423,0.25797923,1970.0,1969.0,0.56332764]
[1771721140621,0.46994698,1969.9,1969.0,0.56332764]
[1771721140825,0.25797923,1970.0,1969.0,0.56332764]
[1771721141127,0.46994701,1969.9,1969.0,0.56332764]
[1771721141323,0.25797923,1970.0,1969.0,0.56332764]
[1771721141523,0.73361797,1969.9,1969.0,0.56332764]
[1771721141726,0.26367152,1969.9,1969.0,0.56332764]
[1771721147430,0.00647363,1970.3,1969.2,0.58191912]
[1771721147632,6.55764295,1970.2,1969.2,0.58191912]
[1771721147828,0.00647363,1970.3,1969.2,0.58191912]
[1771721147829,0.27007367,1970.3,1969.2,0.58191912]
[1771721148128,0.73351217,1970.2,1969.3,0.58191912]
[1771721148328,0.26359083,1970.2,1969.3,0.58191912]
[1771721154835,0.28166464,1970.3,1969.3,0.58191912]
[1771721157139,0.00647363,1970.3,1969.3,0.58191912]
[1771721159138,0.28233031,1970.3,1969.3,0.58191912]
[1771721161238,0.00647363,1970.3,1969.3,0.58191912]
[1771721161438,0.28324492,1970.3,1969.3,0.58191912]
[1771721166144,0.00647363,1970.3,1969.5,0.58191912]
[1771721167951,0.27893948,1970.7,1969.5,0.58191912]
[1771721168847,0.2833766,1970.7,1969.5,0.58191912]
[1771721173651,0.2833766,1970.7,1969.6,0.60247748]
[1771721184658,0.00443712,1970.7,1969.8,0.60247748]
[1771721184862,0.28310715,1970.7,1969.8,0.60247748]
[1771721190163,0.00443712,1970.7,1969.8,0.60247748]
[1771721192972,0.00443712,1970.7,1969.8,11.20211732]
[1771721193673,0.00443712,1970.7,1969.9,0.60247748]
[1771721193874,0.27172559,1970.7,1969.9,0.60247748]
[1771721198586,0.00443712,1970.7,1969.9,0.60247748]
[1771721203084,0.25705019,1970.7,1969.9,0.60247748]
[1771721204593,0.00443712,1970.7,1969.9,0.60247748]
[1771721205593,0.24541586,1970.7,1969.9,0.60247748]
[1771721208091,0.23658062,1971.2,1970.1,0.57464067]
[1771721208394,0.23658062,1971.0,1970.1,0.57464067]
[1771721209097,0.24174118,1971.0,1970.1,0.57839032]
[1771721227212,0.21012979,1970.8,1970.1,0.00374965]
[1771721243226,0.21012979,1970.8,1969.9,0.56013335]
[1771721244224,0.21012979,1970.8,1969.9,0.56506665]
[1771721244624,0.00516056,1971.0,1969.9,0.56506665]
[1771721244625,0.17696044,1970.6,1969.9,0.0049333]
[1771721247033,0.17620169,1970.4,1969.7,0.56013335]
[1771721247921,0.17620169,1970.4,1969.7,0.56536398]
[1771721253135,0.17620169,1970.4,1969.7,0.00523063]
[1771721254737,0.17203231,1970.2,1969.7,0.00523063]
[1771721254932,0.17203231,1970.2,1969.1,0.56013335]
[1771721255138,0.17202978,1970.0,1969.1,0.56013335]
[1771721255937,0.17202978,1970.0,1969.1,0.56648182]
[1771721257349,0.170078,1970.3,1969.1,0.56648182]
[1771721257646,0.170078,1970.1,1969.1,0.56648182]
[1771721277454,0.1963866,1970.2,1969.1,0.56648182]
[1771721277753,6.459,1970.3,1969.1,0.56648182]
[1771721278151,0.19638677,1970.4,1969.1,0.56648182]
[1771721280553,0.19638677,1970.4,1969.3,0.57655339]
[1771721282851,0.00516056,1971.0,1969.1,0.00634847]
[1771721282852,0.21498078,1970.6,1969.5,0.57655339]
[1771721283057,0.21497897,1970.9,1969.5,0.57655339]
[1771721283254,0.68344882,1970.8,1969.5,0.57655339]
[1771721283453,0.68344882,1970.8,1969.1,0.00634847]
[1771721283454,0.21497897,1970.8,1969.7,0.57655339]
[1771721307296,0.21576042,1970.6,1969.7,0.57655339]
[1771721314896,0.20607942,1970.9,1969.7,0.57655339]
[1771721315195,6.28596625,1970.8,1969.7,0.57655339]
[1771721315394,0.46902755,1970.7,1969.7,0.57655339]
[1771721318698,0.2060782,1970.8,1969.7,0.57655339]
[1771721332003,6.46416056,1971.0,1969.7,0.57655339]
[1771721332004,0.21982076,1970.6,1969.7,0.57655339]
[1771721339313,0.22162561,1970.9,1969.7,0.57655339]
[1771721339515,0.22162561,1970.7,1969.7,0.57655339]
[1771721352220,0.46942664,1970.6,1969.7,0.57655339]
[1771721352426,0.22364256,1970.5,1969.7,0.57655339]
[1771721354427,0.22361397,1970.9,1969.7,0.57655339]
[1771721354627,0.22361397,1970.7,1969.7,0.57655339]
[1771721354829,0.46946384,1970.6,1969.7,0.57655339]
[1771721355129,0.22361397,1970.7,1969.7,0.57655339]
[1771721356227,0.46948194,1970.6,1969.7,0.57655339]
[1771721356434,0.22179416,1970.5,1969.7,0.57655339]
[1771721358626,0.22175496,1970.3,1969.7,0.57655339]
[1771721365439,0.22304787,1970.7,1969.7,0.57655339]
[1771721365640,0.22304787,1970.5,1969.7,0.57655339]
[1771721366441,0.22304726,1970.3,1969.7,0.57655339]
[1771721368144,4.49660761,1970.9,1969.7,0.57655339]
[1771721368444,0.22292883,1970.5,1969.7,0.57655339]
[1771721378350,9.32381761,1970.8,1969.7,0.57655339]
[1771721378351,0.21657165,1970.3,1969.7,0.57655339]
[1771721385154,0.21789332,1970.1,1969.5,0.57483924]
[1771721386855,0.21986045,1970.4,1969.5,0.57483924]
[1771721387055,0.21985994,1970.2,1969.5,0.57483924]
[1771721387257,0.68868121,1970.1,1969.5,0.57483924]
[1771721387556,0.21985994,1970.1,1969.5,0.57483924]
[1771721389059,0.22303596,1970.4,1969.5,0.57483924]
[1771721389258,6.53237198,1970.3,1969.5,0.57483924]
[1771721389457,6.53237198,1970.2,1969.5,0.57483924]
[1771721389658,0.46897261,1970.1,1969.5,0.57483924]
[1771721389859,0.22303596,1970.4,1969.5,0.57483924]
[1771721390157,6.75469802,1970.3,1969.5,0.57483924]
[1771721390358,6.53166252,1970.2,1969.5,0.57483924]
[1771721390559,0.2230355,1970.3,1969.5,0.57483924]
[1771721390763,6.53109582,1970.2,1969.5,0.57483924]
[1771721390962,0.2230355,1970.3,1969.5,0.57483924]
[1771721391164,6.53112947,1970.2,1969.5,0.57483924]
[1771721391365,0.2230355,1970.3,1969.5,0.57483924]
[1771721391566,6.53064275,1970.2,1969.5,0.57483924]
[1771721391865,0.2230355,1970.3,1969.5,0.57483924]
[1771721392060,6.53064265,1970.2,1969.5,0.57483924]
[1771721392264,0.2230355,1970.3,1969.5,0.57483924]
[1771721394165,0.23081815,1970.4,1969.5,0.57483924]
[1771721394361,0.46885703,1970.3,1969.5,0.57483924]
[1771721394656,0.23081815,1970.4,1969.5,0.57483924]
[1771721394856,0.46885828,1970.3,1969.5,0.57483924]
[1771721395065,0.23081815,1970.4,1969.5,0.57483924]
[1771721395364,6.53065061,1970.3,1969.5,0.57483924]
[1771721395564,0.23081815,1970.4,1969.5,0.57483924]
[1771721395860,6.53067193,1970.3,1969.5,0.57483924]
[1771721396066,0.23081815,1970.4,1969.5,0.57483924]
[1771721396263,0.23026638,1970.6,1969.5,0.57483924]
[1771721396563,0.46887705,1970.5,1969.5,0.57483924]
[1771721396765,0.23096935,1970.5,1969.5,0.57483924]
[1771721402971,0.23324519,1970.7,1969.5,0.57483924]
[1771721403170,6.7669692,1970.6,1969.5,0.57483924]
[1771721403370,0.70231013,1970.5,1969.5,0.57483924]
[1771721403572,0.23324476,1970.5,1969.5,0.57483924]
[1771721404469,0.23324437,1970.3,1969.5,0.57483924]
[1771721408170,0.23665922,1970.1,1969.5,0.57483924]
[1771721422780,0.21891672,1970.3,1969.5,0.57483924]
[1771721422982,6.76595337,1970.2,1969.5,0.57483924]
[1771721423187,0.46894403,1970.1,1969.5,0.57483924]
[1771721423386,0.21891672,1970.2,1969.5,0.57483924]
[1771721423589,0.46893427,1970.1,1969.5,0.57483924]
[1771721423786,0.21891672,1970.2,1969.5,0.57483924]
[1771721423985,6.54690028,1970.1,1969.5,0.57483924]
[1771721424288,0.21891672,1970.2,1969.5,0.57483924]
[1771721424489,6.54674094,1970.1,1969.5,0.57483924]
[1771721424786,0.21891672,1970.2,1969.5,0.57483924]
[1771721424987,6.76440114,1970.1,1969.5,0.57483924]
[1771721425182,0.21766602,1970.1,1969.5,0.57483924]
[1771721431090,0.21992452,1970.2,1969.5,0.57483924]
[1771721431291,6.54975396,1970.1,1969.5,0.57483924]
[1771721431489,0.21992452,1970.3,1969.5,0.57483924]
[1771721431793,6.5503209,1970.2,1969.5,0.57483924]
[1771721431994,0.21992452,1970.3,1969.5,0.57483924]
[1771721432188,6.55033996,1970.2,1969.5,0.57483924]
[1771721432490,0.46927548,1970.1,1969.5,0.57483924]
[1771721432696,0.21992452,1970.3,1969.5,0.57483924]
[1771721432991,6.55150174,1970.2,1969.5,0.57483924]
[1771721433188,0.4692757,1970.1,1969.5,0.57483924]
[1771721433392,0.21992452,1970.3,1969.5,0.57483924]
[1771721433593,6.55307965,1970.2,1969.5,0.57483924]
[1771721433793,0.46939489,1970.1,1969.5,0.57483924]
[1771721433995,0.21992452,1970.3,1969.5,0.57483924]
[1771721434197,6.55308084,1970.2,1969.5,0.57483924]
[1771721434490,0.46939493,1970.1,1969.5,0.57483924]
[1771721434693,0.21992452,1970.3,1969.5,0.57483924]
[1771721434893,6.55458826,1970.2,1969.5,0.57483924]
[1771721435094,0.46948181,1970.1,1969.5,0.57483924]
[1771721435297,0.21992452,1970.3,1969.5,0.57483924]
[1771721435497,6.55605407,1970.2,1969.5,0.57483924]
[1771721435696,0.46958913,1970.1,1969.5,0.57483924]
[1771721435997,0.21992452,1970.3,1969.5,0.57483924]
[1771721436186,6.55610618,1970.2,1969.5,0.57483924]
[1771721436391,0.46959286,1970.1,1969.5,0.57483924]
[1771721436591,0.21992452,1970.3,1969.5,0.57483924]
[1771721436891,6.55861345,1970.2,1969.5,0.57483924]
[1771721437088,0.46977356,1970.1,1969.5,0.57483924]
[1771721437295,0.21992452,1970.3,1969.5,0.57483924]
[1771721437495,6.56013866,1970.2,1969.5,0.57483924]
[1771721437688,6.56013866,1970.1,1969.5,0.57483924]
[1771721437892,0.21992452,1970.3,1969.5,0.57483924]
[1771721438091,6.56013524,1970.2,1969.5,0.57483924]
[1771721438292,6.56013524,1970.1,1969.5,0.57483924]
[1771721438594,0.21992452,1970.3,1969.5,0.57483924]
[1771721438793,6.55986864,1970.2,1969.5,0.57483924]
[1771721438990,6.55986864,1970.1,1969.5,0.57483924]
[1771721439200,0.21992452,1970.3,1969.5,0.57483924]
[1771721439401,6.55964623,1970.2,1969.5,0.57483924]
[1771721439596,6.55964623,1970.1,1969.5,0.57483924]
[1771721439797,0.22823765,1970.2,1969.5,0.57483924]
[1771721440002,6.55969238,1970.1,1969.5,0.57483924]
[1771721440299,0.22823765,1970.2,1969.5,0.57483924]
[1771721440499,6.55966896,1970.1,1969.5,0.57483924]
[1771721440691,0.22823765,1970.2,1969.5,0.57483924]
[1771721440889,6.55966939,1970.1,1969.5,0.57483924]
[1771721441098,0.22823765,1970.2,1969.5,0.57483924]
[1771721441300,6.55966919,1970.1,1969.5,0.57483924]
[1771721441502,0.22823765,1970.2,1969.5,0.57483924]
[1771721441795,6.55958157,1970.1,1969.5,0.57483924]
[1771721442100,0.4698298,1970.0,1969.5,0.57483924]
[1771721442303,0.22830373,1970.1,1969.5,0.57483924]
[1771721442496,0.46982531,1970.0,1969.5,0.57483924]
[1771721442698,0.22830373,1970.1,1969.5,0.57483924]
[1771721442899,0.46982521,1970.0,1969.5,0.57483924]
[1771721443101,0.22830373,1970.1,1969.5,0.57483924]
[1771721443298,0.46982519,1970.0,1969.5,0.57483924]
[1771721443497,0.22830373,1970.1,1969.5,0.57483924]
[1771721443699,0.46983183,1970.0,1969.5,0.57483924]
[1771721443899,0.22830373,1970.1,1969.5,0.57483924]
[1771721444205,0.46983177,1970.0,1969.5,0.57483924]
[1771721444503,0.22830373,1970.1,1969.5,0.57483924]
[1771721444700,0.46983315,1970.0,1969.5,0.57483924]
[1771721444900,0.22830373,1970.1,1969.5,0.57483924]
[1771721445102,0.46983319,1970.0,1969.5,0.57483924]
[1771721445301,0.22830373,1970.1,1969.5,0.57483924]
[1771721445502,0.46983663,1970.0,1969.5,0.57483924]
[1771721445705,0.22338733,1970.3,1969.5,0.57483924]
[1771721445905,6.5457797,1970.2,1969.5,0.57483924]
[1771721446105,6.5457797,1970.1,1969.5,0.57483924]
[1771721446404,0.22338733,1970.3,1969.5,0.57483924]
[1771721446704,6.54612026,1970.2,1969.5,0.57483924]
[1771721446904,0.46985928,1970.1,1969.5,0.57483924]
[1771721447204,0.22338733,1970.3,1969.5,0.57483924]
[1771721447401,6.54576575,1970.2,1969.5,0.57483924]
[1771721447697,0.46983208,1970.1,1969.5,0.57483924]
[1771721447901,0.22338733,1970.3,1969.5,0.57483924]
[1771721448102,6.54576917,1970.2,1969.5,0.57483924]
[1771721448302,0.46983385,1970.1,1969.5,0.57483924]
[1771721448501,0.22338733,1970.3,1969.5,0.57483924]
[1771721448697,6.5449411,1970.2,1969.5,0.57483924]
[1771721448901,0.46977431,1970.1,1969.5,0.57483924]
[1771721449102,0.22338733,1970.3,1969.5,0.57483924]
[1771721449302,6.54493888,1970.2,1969.5,0.57483924]
[1771721449507,0.46977415,1970.1,1969.5,0.57483924]
[1771721449701,0.22338733,1970.3,1969.5,0.57483924]
[1771721449999,6.54472798,1970.2,1969.5,0.57483924]
[1771721450200,0.46975893,1970.1,1969.5,0.57483924]
[1771721450406,0.22338733,1970.3,1969.5,0.57483924]
[1771721450706,6.54460021,1970.2,1969.5,0.57483924]
[1771721451004,0.46974969,1970.1,1969.5,0.57483924]
[1771721451205,0.22338733,1970.3,1969.5,0.57483924]
[1771721451397,6.54450428,1970.2,1969.5,0.57483924]
[1771721451597,0.46974959,1970.1,1969.5,0.57483924]
[1771721451808,0.22338733,1970.3,1969.5,0.57483924]
[1771721452007,6.54449709,1970.2,1969.5,0.57483924]
[1771721452206,0.46974221,1970.1,1969.5,0.57483924]
[1771721452407,0.22338733,1970.3,1969.5,0.57483924]
[1771721452611,6.54458869,1970.2,1969.5,0.57483924]
[1771721452812,0.46974866,1970.1,1969.5,0.57483924]
[1771721453013,0.22338733,1970.3,1969.5,0.57483924]
[1771721453212,6.5429626,1970.2,1969.5,0.57483924]
[1771721453407,0.22338733,1970.3,1969.5,0.57483924]
[1771721453609,6.54287318,1970.2,1969.5,0.57483924]
[1771721453805,0.22338733,1970.3,1969.5,0.57483924]
[1771721454104,6.54287363,1970.2,1969.5,0.57483924]
[1771721454306,0.22338733,1970.3,1969.5,0.57483924]
[1771721454505,6.54291957,1970.2,1969.5,0.57483924]
[1771721454713,0.22338733,1970.3,1969.5,0.57483924]
[1771721455013,6.54293079,1970.2,1969.5,0.57483924]
[1771721455214,0.22338733,1970.3,1969.5,0.57483924]
[1771721455514,6.5430195,1970.2,1969.5,0.57483924]
[1771721455714,0.46962574,1970.1,1969.5,0.57483924]
[1771721455916,0.22338733,1970.3,1969.5,0.57483924]
[1771721456116,6.54295578,1970.2,1969.5,0.57483924]
[1771721456315,0.22338733,1970.3,1969.5,0.57483924]
[1771721456516,6.54296164,1970.2,1969.5,0.57483924]
[1771721456721,0.22338733,1970.3,1969.5,0.57483924]
[1771721456918,6.54287879,1970.2,1969.5,0.57483924]
[1771721457118,0.22338733,1970.3,1969.5,0.57483924]
[1771721457419,6.53505946,1970.2,1969.5,0.57483924]
[1771721457620,0.22338733,1970.3,1969.5,0.57483924]
[1771721457819,6.53627089,1970.2,1969.5,0.57483924]
[1771721458019,0.22338733,1970.3,1969.5,0.57483924]
[1771721458220,0.22603645,1970.1,1969.5,0.57483924]
[1771721460020,0.22598218,1970.2,1969.5,0.57483924]
[1771721460210,0.46919745,1970.1,1969.5,0.57483924]
[1771721460411,4.24847027,1970.4,1969.5,0.57483924]
[1771721460412,0.22598197,1970.4,1969.5,0.57483924]
[1771721460617,6.76325073,1970.3,1969.5,0.57483924]
[1771721460813,6.53726876,1970.2,1969.5,0.57483924]
[1771721461021,0.46924114,1970.1,1969.5,0.57483924]
[1771721461222,0.22598197,1970.3,1969.5,0.57483924]
[1771721461420,6.5379147,1970.2,1969.5,0.57483924]
[1771721461618,0.46926932,1970.1,1969.5,0.57483924]
[1771721461819,0.22598197,1970.3,1969.5,0.57483924]
[1771721462013,0.46930271,1970.2,1969.5,0.57483924]
[1771721462318,0.22598197,1970.3,1969.5,0.57483924]
[1771721473127,0.21822214,1970.5,1969.5,0.57483924]
[1771721473325,6.53427525,1970.4,1969.5,0.57483924]
[1771721473523,0.21822214,1970.5,1969.5,0.57483924]
[1771721473826,6.75227312,1970.4,1969.5,0.57483924]
[1771721474018,0.21822215,1970.4,1969.5,0.57483924]
[1771721475925,0.21862547,1970.2,1969.5,0.57483924]
[1771721485538,4.24847027,1970.6,1969.5,0.57483924]
[1771721485740,0.21878566,1970.4,1969.5,0.57483924]
[1771721486037,0.68799609,1970.3,1969.5,0.57483924]
[1771721486236,0.21878567,1970.3,1969.5,0.57483924]
[1771721488441,0.21874375,1970.5,1969.5,0.57483924]
[1771721488740,6.53630313,1970.4,1969.5,0.57483924]
[1771721488937,0.46930206,1970.3,1969.5,0.57483924]
[1771721489136,0.21874375,1970.5,1969.5,0.57483924]
[1771721489338,6.5371973,1970.4,1969.5,0.57483924]
[1771721489635,0.21874375,1970.5,1969.5,0.57483924]
[1771721489841,6.53715932,1970.4,1969.5,0.57483924]
[1771721490037,0.21874375,1970.5,1969.5,0.57483924]
[1771721490338,6.53715793,1970.4,1969.5,0.57483924]
[1771721490540,0.21874375,1970.5,1969.5,0.57483924]
[1771721490741,6.53697052,1970.4,1969.5,0.57483924]
[1771721490943,0.21874375,1970.5,1969.5,0.57483924]
[1771721491141,6.53697042,1970.4,1969.5,0.57483924]
[1771721491343,0.21874375,1970.5,1969.5,0.57483924]
[1771721491543,6.5375752,1970.4,1969.5,0.57483924]
[1771721491737,0.21874375,1970.5,1969.5,0.57483924]
[1771721491935,6.53763168,1970.4,1969.5,0.57483924]
[1771721492135,0.21874375,1970.5,1969.5,0.57483924]
[1771721492339,0.46922931,1970.4,1969.5,0.57483924]
[1771721492540,0.21874375,1970.5,1969.5,0.57483924]
[1771721492741,0.46916591,1970.4,1969.5,0.57483924]
[1771721492947,0.21874375,1970.5,1969.5,0.57483924]
[1771721493245,0.21874375,1970.5,1969.3,10.59963984]
[1771721493246,0.21595872,1970.8,1969.7,0.54923886]
[1771721497045,0.21516793,1970.9,1969.7,0.54923886]
[1771721504952,0.21516793,1970.9,1969.8,0.25393]
[1771721505151,0.2233655,1971.0,1969.9,0.57309068]
[1771721505851,0.00516056,1971.0,1969.9,0.57309068]
[1771721506152,0.00516056,1971.0,1970.1,0.57309068]
[1771721512460,0.21680434,1971.7,1970.3,0.57309068]
[1771721512660,0.21680434,1971.5,1970.3,0.57309068]
[1771721513358,0.2223245,1971.5,1970.3,0.57309068]
[1771721524476,0.21069974,1971.3,1970.3,0.57309068]
[1771721549093,0.18212358,1971.1,1970.3,0.57309068]
[1771721552494,0.18239231,1970.9,1970.3,0.57309068]
[1771721552697,0.18239231,1970.9,1970.0,0.59244237]
[1771721568705,4.24847027,1971.3,1970.0,0.59244237]
[1771721568903,0.169025,1971.1,1970.0,0.59244237]
[1771721573904,0.06118435,1971.1,1970.0,0.59244237]
[1771721575106,0.46970991,1971.0,1970.0,0.59244237]
[1771721575306,0.06118435,1971.1,1970.0,0.59244237]
[1771721575508,0.46970799,1971.0,1970.0,0.59244237]
[1771721575808,0.06118435,1971.1,1970.0,0.59244237]
[1771721575998,0.46970832,1971.0,1970.0,0.59244237]
[1771721576202,0.06118435,1971.1,1970.0,0.59244237]
[1771721576404,0.46979626,1971.0,1970.0,0.59244237]
[1771721576700,0.06118435,1971.1,1970.0,0.59244237]
[1771721576898,0.46979626,1971.0,1970.0,0.59244237]
[1771721577099,0.06118435,1971.1,1970.0,0.59244237]
[1771721577409,0.46990319,1971.0,1970.0,0.59244237]
[1771721577607,0.06118435,1971.1,1970.0,0.59244237]
[1771721577905,0.46990324,1971.0,1970.0,0.59244237]
[1771721578105,0.06118435,1971.1,1970.0,0.59244237]
[1771721578307,0.47003348,1971.0,1970.0,0.59244237]
[1771721578506,0.06118435,1971.1,1970.0,0.59244237]
[1771721578808,0.47003601,1971.0,1970.0,0.59244237]
[1771721579009,0.06118435,1971.1,1970.0,0.59244237]
[1771721579210,0.47003611,1971.0,1970.0,0.59244237]
[1771721579407,0.06118435,1971.1,1970.0,0.59244237]
[1771721579609,0.47008274,1971.0,1970.0,0.59244237]
[1771721579910,0.06118435,1971.1,1970.0,0.59244237]
[1771721580210,4.24847027,1971.3,1970.0,0.59244237]
[1771721580211,0.54515982,1971.0,1970.0,0.59244237]
[1771721580410,0.07507708,1971.0,1970.0,0.59244237]
[1771721582514,0.07473975,1971.1,1970.0,0.59244237]
[1771721582721,0.47026589,1971.0,1970.1,0.56781542]
[1771721583014,0.07473975,1971.1,1970.1,0.56781542]
[1771721585915,0.07057027,1970.9,1970.1,0.56781542]
[1771721591408,0.06291888,1970.7,1970.1,0.56781542]
[1771721601629,0.05881549,1971.1,1970.1,0.56781542]
[1771721601927,0.05881549,1970.9,1970.1,0.56781542]
[1771721604130,0.05881549,1970.9,1970.1,0.45997477]
[1771721604432,0.05881549,1970.9,1970.1,0.40605445]
[1771721605833,0.2151896,1970.7,1970.1,0.40605445]
[1771721607128,0.46921892,1970.6,1969.8,0.56375697]
[1771721607334,5.081,1971.2,1969.8,0.56375697]
[1771721607335,0.21499866,1970.5,1969.8,0.56375697]
[1771721619144,0.16107834,1970.5,1969.8,0.56375697]
[1771721619345,0.10714844,1970.5,1969.8,0.56375697]
[1771721626047,0.11427816,1970.3,1969.8,0.56375697]
[1771721628051,0.11427816,1970.3,1969.2,0.254]
[1771721628052,0.11427816,1970.3,1969.7,0.59362879]
[1771721628452,11.66643212,1970.8,1969.2,0.254]
[1771721628453,0.12063343,1970.1,1969.2,0.59362879]
[1771721628654,0.12419823,1970.1,1969.2,0.59362879]
[1771721633954,0.12419823,1970.1,1969.2,0.53969889]
[1771721641757,0.0035648,1970.1,1969.2,0.53969889]
[1771721647766,0.19935034,1970.5,1969.4,0.56487595]
[1771721648362,0.19935729,1970.9,1969.4,0.56487595]
[1771721648664,0.19935729,1970.7,1969.4,0.56487595]
[1771721648863,0.66746556,1970.6,1969.4,0.56487595]
[1771721649065,0.19909177,1970.6,1969.4,0.56487595]
[1771721650262,0.20528911,1970.7,1969.4,0.56487595]
[1771721651466,0.20528911,1970.7,1969.6,0.56487595]
[1771721651962,0.00619738,1970.7,1969.6,0.56487595]
[1771721654266,0.00619738,1970.7,1969.8,0.55817483]
[1771721654971,0.19937788,1971.0,1969.8,0.55817483]
[1771721655873,0.20348198,1971.0,1969.8,0.55817483]
[1771721664772,0.20348198,1971.0,1970.0,0.55817483]
[1771721673185,0.0041041,1971.0,1970.0,0.55817483]
[1771721678779,0.0041041,1971.0,1970.2,0.56802479]
[1771721690482,0.2190822,1971.0,1970.2,0.56802479]
[1771721693692,0.0041041,1971.0,1970.2,0.56802479]
[1771721695088,0.0041041,1971.0,1970.4,0.56802479]
[1771721707299,0.22247268,1971.3,1970.4,0.56802479]
[1771721707506,0.22156711,1971.5,1970.4,0.56802479]
[1771721708408,0.22538368,1971.5,1970.4,0.56802479]
[1771721709802,0.22538368,1971.5,1970.6,0.56361416]
[1771721710008,0.00381657,1971.5,1970.6,0.56937889]
[1771721710509,0.00381657,1971.5,1970.8,0.56361416]
[1771721715909,0.21107294,1971.8,1970.8,0.56361416]
[1771721716710,0.21602873,1971.8,1970.8,0.56361416]
[1771721717007,0.00495579,1971.8,1970.8,0.56361416]
[1771721718208,0.00495579,1971.8,1971.0,0.57888353]
[1771721736530,0.21846842,1971.8,1971.0,0.57888353]
[1771721736932,0.00495579,1971.8,1971.0,0.57888353]
[1771721740232,0.21462956,1972.2,1971.0,0.57888353]
[1771721740430,0.21462956,1972.0,1971.0,0.57888353]
[1771721741434,0.22050798,1972.0,1971.0,0.57888353]
[1771721745235,0.22050798,1972.0,1971.1,0.59993579]
[1771721747533,0.21894597,1971.8,1971.1,0.59993579]
[1771721752433,0.22033812,1971.9,1971.1,0.59993579]
[1771721760753,0.21709931,1971.7,1971.1,0.59993579]
[1771721785668,0.21125894,1971.9,1971.1,0.59993579]
[1771721785970,0.46897752,1971.8,1971.1,0.59993579]
[1771721786163,0.21125894,1971.9,1971.1,0.59993579]
[1771721786364,0.4690387,1971.8,1971.1,0.59993579]
[1771721786560,0.21125894,1971.9,1971.1,0.59993579]
[1771721786761,0.4690387,1971.8,1971.1,0.59993579]
[1771721786962,0.21125894,1971.9,1971.1,0.59993579]
[1771721787167,0.4690389,1971.8,1971.1,0.59993579]
[1771721787363,0.21125894,1971.9,1971.1,0.59993579]
[1771721787563,0.46912524,1971.8,1971.1,0.59993579]
[1771721787764,0.21125894,1971.9,1971.1,0.59993579]
[1771721787967,0.46915917,1971.8,1971.1,0.59993579]
[1771721788273,0.21125894,1971.9,1971.1,0.59993579]
[1771721788573,0.46928276,1971.8,1971.1,0.59993579]
[1771721788772,0.21125894,1971.9,1971.1,0.59993579]
[1771721789073,0.46929233,1971.8,1971.1,0.59993579]
[1771721789272,0.21125894,1971.9,1971.1,0.59993579]
[1771721789573,0.46933254,1971.8,1971.1,0.59993579]
[1771721789772,0.21125894,1971.9,1971.1,0.59993579]
[1771721789972,0.46933416,1971.8,1971.1,0.59993579]
[1771721790174,0.21125894,1971.9,1971.1,0.59993579]
[1771721790476,0.46929667,1971.8,1971.1,0.59993579]
[1771721790775,0.21125894,1971.9,1971.1,0.59993579]